bitfinex/quotes_SOLUSD_20220212
["timestamp","ask_amount","ask_price","bid_price","bid_amount"]
[1644685779537,5.17611477,97.409,97.332,37.97662342]
[1644685779740,5.17511477,97.412,97.332,45.28662342]
[1644685779938,0.04111477,97.408,97.332,45.28662342]
[1644685780141,0.04111477,97.411,97.333,5.134]
[1644685780340,0.04111477,97.407,97.333,5.134]
[1644685780539,0.04111477,97.41,97.333,5.134]
[1644685780741,5.134,97.409,97.333,5.134]
[1644685780940,0.04111477,97.409,97.332,37.97662342]
[1644685781141,9.49383338,97.408,97.332,37.97662342]
[1644685781345,4.35883338,97.407,97.332,37.97662342]
[1644685781544,4.10883338,97.406,97.332,37.97662342]
[1644685781739,0.29111477,97.405,97.332,37.97662342]
[1644685782139,5.135,97.404,97.332,37.97662342]
[1644685782339,0.25,97.403,97.332,37.97662342]
[1644685782542,5.135,97.402,97.332,37.97662342]
[1644685782739,0.25,97.401,97.314,24.7885]
[1644685782940,5.42611477,97.401,97.32,15.4137]
[1644685783141,23.9967,97.4,97.32,15.4137]
[1644685783340,5.42611477,97.399,97.32,15.4137]
[1644685783541,0.04111477,97.398,97.32,15.4137]
[1644685783742,5.135,97.397,97.321,34.23820606]
[1644685783940,0.04111477,97.396,97.321,34.23820606]
[1644685784147,5.135,97.395,97.321,34.23820606]
[1644685784443,0.25,97.394,97.321,34.23820606]
[1644685784643,5.135,97.393,97.33,15.4134]
[1644685784843,5.135,97.393,97.33,23.3534]
[1644685785044,5.17611477,97.399,97.33,23.3534]
[1644685785243,0.25,97.392,97.33,23.3534]
[1644685785443,5.135,97.399,97.33,23.3534]
[1644685785645,23.9967,97.4,97.33,23.3534]
[1644685785646,0.04111477,97.398,97.331,2.62390296]
[1644685785844,0.25,97.399,97.34,15.4119]
[1644685786246,5.135,97.398,97.34,15.4119]
[1644685786545,5.135,97.398,97.321,34.23820606]
[1644685786747,0.29111477,97.397,97.321,34.23820606]
[1644685786944,0.04111477,97.396,97.321,34.23820606]
[1644685787146,5.17611477,97.396,97.33,15.4134]
[1644685787346,0.04111477,97.398,97.33,22.7934]
[1644685787545,0.04111477,97.399,97.33,22.7934]
[1644685787745,0.25,97.399,97.33,22.7934]
[1644685790450,5.135,97.398,97.33,22.7934]
[1644685790850,5.135,97.398,97.33,25.41730296]
[1644685791651,0.25,97.399,97.33,25.41730296]
[1644685792253,0.25,97.399,97.33,18.03730296]
[1644685793955,5.135,97.398,97.33,18.03730296]
[1644685794159,5.135,97.398,97.321,34.23820606]
[1644685794362,2.91501773,97.397,97.31,15.4152]
[1644685794561,4.14703905,97.396,97.28,22.6536]
[1644685794760,0.29111477,97.395,97.296,0.024]
[1644685794962,0.29111477,97.395,97.28,22.6296]
[1644685794963,9.24192428,97.394,97.281,0.024]
[1644685795162,2.89675251,97.388,97.281,0.024]
[1644685795361,5.42711477,97.387,97.281,48.2346859]
[1644685795565,15.4189,97.38,97.3,15.418]
[1644685795762,40.1832494,97.378,97.3,15.418]
[1644685795966,5.136,97.377,97.3,15.418]
[1644685796162,5.386,97.377,97.301,0.25]
[1644685796762,5.136,97.377,97.301,0.25]
[1644685797165,2.62390296,97.376,97.301,0.25]
[1644685797365,5.136,97.375,97.301,0.25]
[1644685797565,5.136,97.376,97.301,0.25]
[1644685797763,5.136,97.377,97.301,0.25]
[1644685798363,5.136,97.377,97.31,15.4163]
[1644685798565,5.136,97.377,97.311,44.00217366]
[1644685798763,0.25,97.376,97.311,44.00217366]
[1644685798965,5.136,97.375,97.311,44.00217366]
[1644685799166,5.136,97.377,97.311,44.00217366]
[1644685800368,0.25,97.376,97.311,44.00217366]
[1644685800567,5.136,97.375,97.311,44.00217366]
[1644685800770,0.25,97.374,97.311,44.00217366]
[1644685800966,5.136,97.373,97.311,44.00217366]
[1644685801166,5.136,97.373,97.32,15.4151]
[1644685801366,0.25,97.372,97.32,15.4151]
[1644685801789,5.136,97.371,97.32,15.4151]
[1644685802170,0.25,97.37,97.32,15.4151]
[1644685802469,5.136,97.369,97.32,15.4151]
[1644685803969,0.25,97.37,97.32,15.4151]
[1644685804269,5.136,97.369,97.311,44.00217366]
[1644685804473,5.42711477,97.377,97.311,44.00217366]
[1644685804672,5.386,97.377,97.311,44.00217366]
[1644685805272,1.45262038,97.367,97.311,46.62607662]
[1644685805474,1.45262038,97.373,97.32,15.4143]
[1644685805673,0.04111477,97.377,97.32,15.4143]
[1644685805873,1.45262038,97.391,97.321,2.62390296]
[1644685806073,0.04111477,97.389,97.321,2.62390296]
[1644685806274,1.45262038,97.392,97.321,2.62390296]
[1644685806473,40.93108008,97.391,97.321,2.62390296]
[1644685807577,40.93108008,97.391,97.312,24.085]
[1644685807774,0.04111477,97.39,97.34,15.4097]
[1644685807974,40.93108008,97.391,97.341,46.3694046]
[1644685809597,40.93108008,97.391,97.35,15.4102]
[1644685810196,42.38370046,97.391,97.341,46.3694046]
[1644685810399,42.38370046,97.391,97.33,51.3654]
[1644685810599,6.58762038,97.39,97.33,51.3654]
[1644685810998,5.135,97.39,97.33,51.3654]
[1644685811201,6.58762038,97.39,97.33,51.3654]
[1644685811402,6.58762038,97.39,97.331,35.94866544]
[1644685811602,1.45262038,97.389,97.34,15.4118]
[1644685812000,1.45262038,97.39,97.34,15.4118]
[1644685813101,1.45262038,97.389,97.34,15.4118]
[1644685813401,1.45262038,97.39,97.34,15.4118]
[1644685813804,42.38370046,97.391,97.34,15.4118]
[1644685814004,1.45262038,97.39,97.34,15.4118]
[1644685814405,1.45262038,97.389,97.34,15.4118]
[1644685814605,1.45262038,97.383,97.341,0.25]
[1644685815108,5.135,97.382,97.341,0.25]
[1644685815503,1.45262038,97.383,97.341,0.25]
[1644685815704,0.25,97.382,97.323,0.53603758]
[1644685815905,1.45262038,97.373,97.323,0.53603758]
[1644685816307,1.45262038,97.357,97.32,0.53376144]
[1644685816506,1.45262038,97.354,97.32,0.53376144]
[1644685816707,0.25,97.353,97.32,0.53376144]
[1644685817112,5.136,97.352,97.32,0.53376144]
[1644685817308,0.25,97.351,97.32,0.53376144]
[1644685817610,5.136,97.35,97.32,0.53376144]
[1644685817808,0.25,97.349,97.32,0.53376144]
[1644685818008,22.7121,97.355,97.32,0.53376144]
[1644685818009,5.136,97.348,97.32,0.53376144]
[1644685818210,5.136,97.349,97.32,0.53376144]
[1644685818411,22.7121,97.355,97.32,0.53376144]
[1644685818412,5.136,97.354,97.32,0.53376144]
[1644685818612,5.386,97.348,97.32,0.53376144]
[1644685818811,0.25,97.348,97.32,0.53376144]
[1644685819012,5.136,97.347,97.32,0.53376144]
[1644685819211,0.25,97.346,97.32,0.53376144]
[1644685819414,5.136,97.345,97.32,0.53376144]
[1644685819813,0.25,97.344,97.32,0.53376144]
[1644685820012,0.25,97.344,97.286,0.024]
[1644685820013,34.0,97.343,97.286,0.024]
[1644685820218,1.45262038,97.339,97.285,0.25]
[1644685820415,5.138,97.338,97.285,0.25]
[1644685820614,0.25,97.337,97.256,2.62390296]
[1644685820814,47.33660981,97.337,97.257,46.62191314]
[1644685821016,6.59062038,97.336,97.322,0.5361574]
[1644685821214,0.25,97.335,97.322,0.5361574]
[1644685821419,5.136,97.334,97.322,0.5361574]
[1644685821617,6.06439994,97.33,97.322,0.5361574]
[1644685821815,3.03219997,97.33,97.322,0.5361574]
[1644685822016,3.03219997,97.33,97.257,0.25]
[1644685822017,33.0,97.329,97.214,1.40869667]
[1644685822216,38.389,97.329,97.23,14.81]
[1644685822414,2.62390296,97.328,97.228,23.125]
[1644685822618,15.4291,97.32,97.24,15.4275]
[1644685822919,55.7592,97.329,97.211,35.60702166]
[1644685822920,39.88042668,97.318,97.211,35.60702166]
[1644685823117,25.17992038,97.317,97.211,35.63102166]
[1644685823315,25.17992038,97.317,97.212,0.024]
[1644685823316,1.45262038,97.312,97.212,0.024]
[1644685823515,5.14,97.311,97.212,0.024]
[1644685823717,5.39,97.311,97.212,0.024]
[1644685823915,6.84262038,97.311,97.212,0.024]
[1644685824115,1.70262038,97.311,97.212,0.024]
[1644685824314,5.14,97.31,97.212,0.274]
[1644685824516,5.14,97.31,97.213,0.024]
[1644685824817,0.25,97.309,97.22,15.4298]
[1644685825017,0.25,97.309,97.221,0.024]
[1644685825218,5.14,97.308,97.221,0.024]
[1644685825618,0.25,97.307,97.221,0.024]
[1644685825817,5.14,97.306,97.221,0.024]
[1644685826218,22.8825,97.305,97.221,0.024]
[1644685826616,36.26228988,97.303,97.221,0.024]
[1644685826817,15.4317,97.3,97.221,0.024]
[1644685827016,5.14,97.299,97.221,0.024]
[1644685827218,5.39,97.299,97.221,0.024]
[1644685827819,5.39,97.299,97.221,0.274]
[1644685828025,5.39,97.299,97.222,0.024]
[1644685829523,104.0,97.298,97.222,0.024]
[1644685829720,15.4333,97.29,97.222,0.024]
[1644685829920,0.25,97.297,97.221,0.25]
[1644685830121,5.141,97.296,97.222,0.024]
[1644685830320,0.25,97.295,97.222,0.024]
[1644685830523,5.14,97.294,97.222,0.024]
[1644685830721,0.25,97.293,97.221,0.25]
[1644685830923,5.141,97.292,97.221,0.25]
[1644685831322,0.25,97.291,97.221,0.25]
[1644685831521,5.141,97.29,97.221,0.25]
[1644685831722,0.25,97.289,97.221,0.25]
[1644685832122,5.141,97.288,97.221,0.25]
[1644685832321,37.50760925,97.287,97.221,0.25]
[1644685832524,5.141,97.286,97.221,0.25]
[1644685832723,0.25,97.285,97.221,0.25]
[1644685832925,5.141,97.284,97.221,0.25]
[1644685833325,0.25,97.283,97.221,0.25]
[1644685833724,5.141,97.286,97.221,0.25]
[1644685834327,5.141,97.286,97.23,15.4291]
[1644685834627,5.141,97.286,97.231,43.08511895]
[1644685835427,0.25,97.285,97.231,43.08511895]
[1644685835635,5.14,97.284,97.231,43.08511895]
[1644685835829,37.25760925,97.287,97.231,43.08511895]
[1644685836431,5.14,97.292,97.24,15.4275]
[1644685836629,5.14,97.309,97.24,15.4275]
[1644685836836,24.6894,97.327,97.24,15.4275]
[1644685837027,5.139,97.326,97.24,15.4275]
[1644685837428,46.24729414,97.325,97.24,15.4275]
[1644685837631,5.139,97.324,97.24,15.4275]
[1644685837830,5.389,97.324,97.241,0.024]
[1644685838028,5.389,97.324,97.25,15.4251]
[1644685838232,5.389,97.324,97.251,36.26153112]
[1644685838429,5.389,97.324,97.251,36.28553112]
[1644685842033,5.389,97.324,97.26,15.4244]
[1644685842432,0.25,97.324,97.26,15.4244]
[1644685842632,5.139,97.323,97.26,15.4244]
[1644685842835,0.25,97.322,97.26,15.4244]
[1644685843331,5.139,97.321,97.26,15.4244]
[1644685843734,0.25,97.32,97.26,15.4244]
[1644685843933,5.139,97.326,97.261,2.62390296]
[1644685844133,24.6894,97.327,97.261,2.62390296]
[1644685844334,5.139,97.326,97.261,2.62390296]
[1644685844534,24.6894,97.327,97.261,2.62390296]
[1644685844733,24.6894,97.327,97.27,15.4227]
[1644685844934,5.139,97.333,97.27,15.4227]
[1644685845134,1.45262038,97.34,97.271,2.64790296]
[1644685845335,1.45262038,97.342,97.271,2.62390296]
[1644685845632,1.45262038,97.343,97.273,44.68726208]
[1644685845836,1.45262038,97.345,97.28,15.4202]
[1644685846037,5.138,97.344,97.28,15.4202]
[1644685846235,5.138,97.345,97.28,15.4202]
[1644685846437,5.138,97.346,97.281,2.62390296]
[1644685847737,5.138,97.346,97.29,15.4198]
[1644685847938,6.59062038,97.346,97.291,42.84269496]
[1644685848138,1.45262038,97.345,97.291,42.84269496]
[1644685848338,5.136,97.344,97.291,42.84269496]
[1644685848838,1.45262038,97.348,97.3,15.418]
[1644685849038,0.04111477,97.388,97.3,15.418]
[1644685849039,1.45262038,97.373,97.31,14.81]
[1644685849238,1.45262038,97.377,97.31,14.81]
[1644685849438,1.45262038,97.374,97.31,14.81]
[1644685849840,1.45262038,97.372,97.311,47.14790823]
[1644685850143,1.45262038,97.369,97.32,15.4118]
[1644685850344,1.45262038,97.369,97.233,1.40869667]
[1644685850345,9.14,97.369,97.233,1.40869667]
[1644685850561,1.45262038,97.353,97.284,0.024]
[1644685850762,1.45262038,97.336,97.251,0.024]
[1644685850963,13.16262038,97.336,97.233,0.024]
[1644685851270,1.45262038,97.317,97.221,0.024]
[1644685851469,1.45262038,97.309,97.231,0.024]
[1644685851667,1.45262038,97.312,97.222,2.62390296]
[1644685851869,38.02281385,97.319,97.232,2.62390296]
[1644685852267,5.14,97.328,97.26,15.4227]
[1644685852466,5.14,97.328,97.242,46.75303197]
[1644685852467,1.45262038,97.332,97.261,104.0]
[1644685852667,1.45262038,97.35,97.262,23.814]
[1644685852868,1.45262038,97.351,97.262,23.814]
[1644685853068,27.71115251,97.378,97.263,0.024]
[1644685853069,5.138,97.349,97.263,0.024]
[1644685853268,1.45262038,97.344,97.263,43.68433713]
[1644685853567,1.45262038,97.341,97.264,2.62390296]
[1644685853773,1.45262038,97.329,97.265,0.024]
[1644685853968,38.95416636,97.328,97.264,0.024]
[1644685854170,44.09216636,97.328,97.263,41.03643417]
[1644685854370,0.25,97.327,97.263,41.03643417]
[1644685854768,0.25,97.327,97.264,0.25]
[1644685855169,0.25,97.327,97.263,41.03643417]
[1644685855471,5.139,97.326,97.27,15.4226]
[1644685855871,0.25,97.325,97.27,15.4226]
[1644685856072,5.138,97.324,97.27,15.4226]
[1644685856275,0.25,97.323,97.27,15.4226]
[1644685856472,5.138,97.324,97.271,2.87390296]
[1644685856670,1.45262038,97.327,97.271,2.87390296]
[1644685856671,5.138,97.327,97.271,2.87390296]
[1644685856879,5.138,97.327,97.272,2.62390296]
[1644685858472,5.138,97.327,97.271,0.25]
[1644685859872,24.7036,97.326,97.271,0.25]
[1644685860072,24.7036,97.326,97.263,41.06043417]
[1644685860073,5.138,97.325,97.263,41.03643417]
[1644685860374,0.25,97.324,97.263,41.03643417]
[1644685860573,1.45262038,97.322,97.253,0.024]
[1644685860774,1.45262038,97.322,97.252,2.62390296]
[1644685860775,1.45262038,97.319,97.252,0.024]
[1644685860974,1.45262038,97.318,97.25,15.4247]
[1644685861188,1.45262038,97.317,97.25,15.4487]
[1644685861382,1.70262038,97.317,97.25,15.4247]
[1644685861576,1.45262038,97.309,97.244,42.02883985]
[1644685861775,5.389,97.308,97.244,42.05283985]
[1644685861976,6.84162038,97.308,97.244,42.02883985]
[1644685862178,1.45262038,97.307,97.244,42.02883985]
[1644685862378,24.5329,97.306,97.244,42.02883985]
[1644685862779,1.45262038,97.304,97.244,42.02883985]
[1644685863179,0.25,97.303,97.244,44.65274281]
[1644685863480,0.25,97.303,97.25,15.4259]
[1644685863681,5.14,97.302,97.25,15.4259]
[1644685864080,5.14,97.305,97.251,2.62390296]
[1644685864686,24.5329,97.306,97.25,15.4259]
[1644685864885,5.139,97.304,97.25,15.4259]
[1644685865284,0.25,97.303,97.25,15.4259]
[1644685865485,5.139,97.302,97.25,15.4259]
[1644685865885,0.25,97.301,97.25,15.4259]
[1644685866087,5.14,97.3,97.25,15.4259]
[1644685866285,0.25,97.299,97.25,15.4259]
[1644685866490,5.14,97.298,97.25,15.4259]
[1644685866686,38.29998521,97.297,97.25,15.4259]
[1644685866888,38.54998521,97.297,97.25,15.4259]
[1644685867087,38.29998521,97.297,97.25,15.4259]
[1644685867288,0.25,97.296,97.25,15.4259]
[1644685867488,5.39,97.296,97.235,0.024]
[1644685867787,5.39,97.296,97.23,15.4521]
[1644685867988,5.39,97.296,97.23,15.4281]
[1644685868188,22.7101,97.295,97.23,15.4281]
[1644685868390,5.14,97.294,97.23,15.4281]
[1644685868688,5.39,97.294,97.231,37.86607074]
[1644685869093,5.39,97.294,97.222,0.024]
[1644685869094,8.01390296,97.294,97.222,0.024]
[1644685869308,1.45262038,97.288,97.222,0.024]
[1644685869509,1.45262038,97.284,97.211,0.024]
[1644685869707,1.70262038,97.283,97.211,0.024]
[1644685869910,6.84362038,97.283,97.181,25.16820296]
[1644685870108,40.19082309,97.282,97.182,37.28183889]
[1644685870311,0.25,97.281,97.183,0.024]
[1644685870509,5.142,97.28,97.183,0.024]
[1644685870710,0.25,97.279,97.183,0.024]
[1644685870912,5.142,97.278,97.19,15.4342]
[1644685871110,5.142,97.278,97.191,0.024]
[1644685871311,0.25,97.277,97.191,2.62390296]
[1644685871512,5.392,97.277,97.192,2.64790296]
[1644685871713,0.25,97.277,97.193,23.2974]
[1644685871911,5.142,97.276,97.194,0.024]
[1644685872111,5.142,97.276,97.211,46.04204248]
[1644685872313,0.25,97.275,97.211,46.04204248]
[1644685872713,5.141,97.274,97.211,46.04204248]
[1644685873217,22.6377,97.281,97.211,46.04204248]
[1644685873816,15.4344,97.28,97.211,46.04204248]
[1644685874116,23.19930296,97.28,97.201,0.024]
[1644685874320,23.19930296,97.28,97.201,0.274]
[1644685874321,2.87390296,97.279,97.201,0.274]
[1644685874518,5.141,97.278,97.202,0.024]
[1644685874718,0.25,97.277,97.202,0.024]
[1644685874919,5.141,97.276,97.202,0.024]
[1644685875317,0.25,97.275,97.202,0.024]
[1644685875520,0.25,97.275,97.195,0.024]
[1644685875718,5.142,97.274,97.195,0.024]
[1644685875924,5.142,97.278,97.195,0.024]
[1644685876120,0.25,97.273,97.195,0.024]
[1644685876320,22.6377,97.281,97.195,23.4646]
[1644685876519,22.6377,97.281,97.196,0.024]
[1644685876720,5.141,97.28,97.196,0.024]
[1644685877119,5.141,97.28,97.196,0.274]
[1644685877322,1.45262038,97.268,97.181,0.024]
[1644685877621,1.45262038,97.262,97.169,23.4646]
[1644685877822,0.25,97.261,97.169,23.4646]
[1644685878021,5.143,97.26,97.17,0.024]
[1644685878221,41.84629682,97.258,97.17,36.39202292]
[1644685878422,41.84629682,97.258,97.171,0.024]
[1644685878822,41.84629682,97.258,97.18,15.4363]
[1644685879022,5.143,97.257,97.181,24.3483]
[1644685879222,8.01690296,97.257,97.182,0.024]
[1644685879428,2.62390296,97.256,97.181,0.024]
[1644685879624,5.143,97.255,97.181,0.024]
[1644685879824,5.143,97.255,97.171,0.024]
[1644685879825,5.393,97.255,97.171,0.024]
[1644685880022,15.4391,97.25,97.171,0.024]
[1644685880222,5.393,97.249,97.171,0.024]
[1644685880925,24.0468,97.248,97.171,0.024]
[1644685881126,5.143,97.247,97.171,0.024]
[1644685881327,5.393,97.247,97.171,0.274]
[1644685881527,5.143,97.247,97.171,0.274]
[1644685882126,5.143,97.247,97.18,15.4372]
[1644685883328,5.143,97.247,97.181,2.62390296]
[1644685883528,5.143,97.247,97.19,15.4344]
[1644685883729,5.143,97.247,97.191,43.35125634]
[1644685884930,41.84629682,97.258,97.191,43.35125634]
[1644685885130,41.84629682,97.258,97.2,15.4338]
[1644685885330,28.7619,97.257,97.2,15.4338]
[1644685886333,0.25,97.256,97.2,15.4338]
[1644685886532,5.142,97.255,97.2,15.4338]
[1644685886732,0.25,97.254,97.2,15.4338]
[1644685886935,5.142,97.253,97.2,15.4338]
[1644685887138,5.142,97.254,97.2,15.4338]
[1644685887335,23.6199,97.257,97.2,15.4338]
[1644685887336,5.142,97.256,97.2,15.4338]
[1644685888338,5.142,97.256,97.192,0.024]
[1644685888538,2.62390296,97.255,97.191,43.35125634]
[1644685888738,5.142,97.254,97.191,43.35125634]
[1644685888942,1.45262038,97.25,97.191,43.35125634]
[1644685889240,5.392,97.249,97.191,43.35125634]
[1644685889438,1.70262038,97.249,97.191,43.35125634]
[1644685889642,5.142,97.248,97.191,43.35125634]
[1644685889839,0.25,97.247,97.192,0.25]
[1644685890039,5.143,97.246,97.192,0.25]
[1644685890241,0.25,97.245,97.191,43.35125634]
[1644685890648,5.143,97.244,97.191,43.35125634]
[1644685890849,42.9549833,97.243,97.171,0.024]
[1644685891049,27.9279,97.242,97.171,0.274]
[1644685891248,0.25,97.241,97.171,0.274]
[1644685891450,5.143,97.24,97.171,0.25]
[1644685891850,0.25,97.239,97.171,40.59271512]
[1644685892848,0.25,97.24,97.171,40.59271512]
[1644685893050,5.143,97.239,97.171,40.59271512]
[1644685893250,0.25,97.238,97.171,40.59271512]
[1644685894452,0.25,97.241,97.171,40.59271512]
[1644685894654,5.143,97.24,97.171,40.61671512]
[1644685894855,0.25,97.239,97.171,40.34271512]
[1644685895053,1.45262038,97.235,97.171,40.34271512]
[1644685895353,5.393,97.234,97.171,40.34271512]
[1644685895560,104.0,97.233,97.166,0.024]
[1644685895761,1.45262038,97.231,97.153,0.274]
[1644685895961,5.144,97.23,97.153,0.274]
[1644685896162,5.394,97.23,97.153,0.274]
[1644685896362,24.0827,97.229,97.153,0.274]
[1644685896561,51.34494786,97.228,97.154,38.20349707]
[1644685896764,51.59494786,97.228,97.155,0.024]
[1644685897366,53.04756824,97.228,97.155,0.024]
[1644685897764,15.444,97.22,97.155,0.024]
[1644685897963,5.144,97.219,97.155,0.024]
[1644685898164,5.394,97.219,97.155,0.024]
[1644685898763,5.394,97.219,97.154,0.024]
[1644685899664,1.45262038,97.223,97.154,48.38950653]
[1644685899866,46.20094786,97.228,97.155,0.024]
[1644685899867,1.45262038,97.224,97.155,0.024]
[1644685900064,46.20094786,97.228,97.155,0.024]
[1644685900266,5.144,97.227,97.155,0.024]
[1644685900666,1.45262038,97.225,97.155,0.024]
[1644685900867,15.4441,97.22,97.155,0.024]
[1644685901066,5.144,97.219,97.155,0.024]
[1644685901267,5.394,97.219,97.155,0.024]
[1644685902266,5.394,97.219,97.154,0.024]
[1644685902470,15.4458,97.21,97.154,0.024]
[1644685902668,29.3347,97.209,97.153,0.25]
[1644685902866,0.25,97.208,97.113,0.024]
[1644685903066,1.45262038,97.204,97.113,45.79777941]
[1644685903269,5.394,97.203,97.114,0.024]
[1644685903466,6.84662038,97.203,97.114,0.024]
[1644685903668,1.45262038,97.201,97.114,0.024]
[1644685903868,20.5912,97.2,97.12,15.4458]
[1644685904069,20.8412,97.2,97.121,0.024]
[1644685904269,1.45262038,97.198,97.121,0.024]
[1644685904468,27.8095,97.197,97.121,0.024]
[1644685904669,32.2055,97.197,97.114,0.024]
[1644685904871,5.144,97.196,97.122,0.024]
[1644685905070,5.144,97.196,97.114,0.024]
[1644685905269,15.4489,97.19,97.114,0.024]
[1644685905470,109.144,97.189,97.165,0.19642999]
[1644685905669,1.45262038,97.188,97.165,0.19642999]
[1644685905868,1.45262038,97.182,97.165,0.19642999]
[1644685906069,20.87439994,97.18,97.165,0.19642999]
[1644685906270,141.05456571,97.179,97.165,0.19642999]
[1644685906470,1.45262038,97.177,97.165,0.00642999]
[1644685906671,6.59662038,97.176,97.165,0.00642999]
[1644685906873,1.45262038,97.169,97.165,0.00642999]
[1644685907075,1.45262038,97.167,97.165,0.00642999]
[1644685907274,0.25,97.166,97.165,0.00642999]
[1644685907473,0.01357001,97.164,97.082,0.024]
[1644685907677,104.01357001,97.164,97.082,0.024]
[1644685908074,0.25,97.163,97.082,0.024]
[1644685908274,5.148,97.162,97.082,0.024]
[1644685908474,104.0,97.16,97.082,0.024]
[1644685908874,0.25,97.159,97.082,0.024]
[1644685909174,5.148,97.158,97.082,0.024]
[1644685909677,104.0,97.156,97.082,0.024]
[1644685909875,5.148,97.155,97.082,0.024]
[1644685910074,5.398,97.155,97.082,0.024]
[1644685911880,15.456,97.15,97.082,0.024]
[1644685912077,109.148,97.149,97.081,0.25]
[1644685912279,0.25,97.148,97.081,0.25]
[1644685912478,5.148,97.147,97.081,0.25]
[1644685912679,0.25,97.148,97.081,0.25]
[1644685912884,0.25,97.146,97.081,0.25]
[1644685913080,39.93842731,97.144,97.061,44.62780175]
[1644685913278,0.25,97.143,97.061,44.62780175]
[1644685913480,5.399,97.143,97.061,44.62780175]
[1644685913879,15.4576,97.14,97.061,44.62780175]
[1644685914080,5.149,97.139,97.061,44.62780175]
[1644685914280,5.399,97.139,97.061,44.62780175]
[1644685915383,104.0,97.129,97.061,0.024]
[1644685915581,104.0,97.127,97.052,0.024]
[1644685915783,0.25,97.126,97.052,0.024]
[1644685915980,5.149,97.125,97.052,0.024]
[1644685916181,104.0,97.119,97.052,0.024]
[1644685916382,15.4631,97.11,97.036,37.98375704]
[1644685916581,42.36665859,97.109,97.037,0.024]
[1644685916781,0.25,97.108,97.051,0.01499394]
[1644685916984,5.15,97.107,97.051,0.01499394]
[1644685917385,0.25,97.106,97.051,0.01499394]
[1644685917583,5.15,97.105,97.051,0.01499394]
[1644685917785,0.25,97.104,97.051,0.01499394]
[1644685917989,5.15,97.103,97.051,0.01499394]
[1644685918387,0.25,97.102,97.051,0.01499394]
[1644685919186,0.25,97.102,97.022,48.61657112]
[1644685919390,5.151,97.101,97.023,0.024]
[1644685919889,0.25,97.1,97.023,0.024]
[1644685920291,5.151,97.108,97.03,15.4607]
[1644685920492,61.02205859,97.109,97.031,0.024]
[1644685920689,5.15,97.107,97.031,0.024]
[1644685920892,5.15,97.108,97.031,0.024]
[1644685921391,5.15,97.108,97.031,0.274]
[1644685921590,0.25,97.107,97.031,0.024]
[1644685921815,5.15,97.106,97.031,0.024]
[1644685922215,0.25,97.105,97.031,0.024]
[1644685922616,5.151,97.104,97.031,0.024]
[1644685922817,0.25,97.103,97.031,0.024]
[1644685923020,5.151,97.102,97.031,0.024]
[1644685923218,0.25,97.101,97.031,0.024]
[1644685923417,5.151,97.1,97.031,0.024]
[1644685923619,5.151,97.1,97.03,15.4607]
[1644685923819,0.25,97.099,97.03,15.4607]
[1644685924018,5.151,97.098,97.023,0.024]
[1644685924219,25.1248,97.097,97.023,0.274]
[1644685924422,5.151,97.096,97.024,0.024]
[1644685924620,109.151,97.096,97.024,0.024]
[1644685924820,0.25,97.095,97.023,0.024]
[1644685925021,104.0,97.092,97.023,0.024]